fUST/lending_fUST_20250901
["ID","MTS","AMOUNT","RATE_DAILY","PERIOD"]
[382812329,1756735832692,-194.91,0.00013642,2]
[382812332,1756735832703,-194.91,0.00013642,2]
[382812334,1756735832714,-194.91,0.00013642,2]
[382812335,1756735832724,-194.91,0.00013642,2]
[382812337,1756735832734,-194.9,0.00013642,2]
[382812340,1756735832743,-168.0,0.00013643,2]
[382812342,1756735832753,-261.13386656,0.0001367,2]
[382812343,1756735832764,-500.0,0.00013677,2]
[382812345,1756735832774,-500.0,0.00013677,2]
[382812347,1756735832784,-11366.76240249,0.00013679,2]
[382812349,1756735832794,-160.0,0.00013679,2]
[382812351,1756735832804,-217.44302069,0.00013679,2]
[382812353,1756735832813,-417.15472785,0.00013679,2]
[382812355,1756735832822,-846.10922732,0.00013679,2]
[382812357,1756735832832,-425.82406011,0.00013679,2]
[382812359,1756735832841,-530.14184084,0.00013679,2]
[382812361,1756735832850,-160.0,0.00013679,2]
[382812363,1756735832859,-160.0,0.00013679,2]
[382812365,1756735832868,-160.0,0.00013679,2]
[382812367,1756735832878,-160.0,0.00013679,2]
[382812369,1756735832887,-232.83393981,0.00013679,2]
[382812371,1756735832896,-160.0,0.00013679,2]
[382812373,1756735832906,-500.0,0.00013689,2]
[382812375,1756735832915,-500.0,0.00013689,2]
[382812377,1756735832924,-277.14912068,0.00013689,2]
[382812379,1756735832933,-303.98913025,0.00013689,2]
[382812381,1756735832943,-500.0,0.00013689,2]
[382812383,1756735832952,-500.0,0.00013689,2]
[382812385,1756735832962,-500.0,0.00013689,2]
[382812387,1756735832971,-500.0,0.00013689,2]
[382812389,1756735832980,-500.0,0.00013689,2]
[382812391,1756735832989,-500.0,0.00013689,2]
[382812393,1756735832999,-500.0,0.00013689,2]
[382812395,1756735833008,-450.0,0.00013689,2]
[382812397,1756735833017,-500.0,0.00013689,2]
[382812399,1756735833026,-500.0,0.00013689,2]
[382812401,1756735833036,-1000.0,0.0001369,2]
[382812404,1756735833046,-1000.0,0.0001369,2]
[382812406,1756735833056,-500.0,0.0001369,2]
[382812409,1756735833067,-151.0,0.0001369,2]
[382812412,1756735833077,-151.0,0.0001369,2]
[382812415,1756735833086,-500.0,0.0001369,2]
[382812418,1756735833096,-151.0,0.0001369,2]
[382812421,1756735833107,-151.0,0.0001369,2]
[382812424,1756735833117,-500.0,0.0001369,2]
[382812425,1756735833126,-151.0,0.0001369,2]
[382812427,1756735833136,-151.0,0.0001369,2]
[382812429,1756735833146,-500.0,0.0001369,2]
[382812430,1756735833156,-151.0,0.0001369,2]
[382812432,1756735833165,-151.0,0.0001369,2]
[382812434,1756735833175,-500.0,0.0001369,2]
[382812436,1756735833185,-151.0,0.0001369,2]
[382812438,1756735833194,-500.0,0.0001369,2]
[382812440,1756735833204,-151.0,0.0001369,2]
[382812442,1756735833213,-151.0,0.0001369,2]
[382812444,1756735833222,-500.0,0.0001369,2]
[382812446,1756735833232,-151.0,0.0001369,2]
[382812447,1756735833241,-173.43259795,0.0001369,2]
[382812449,1756735833251,-500.0,0.0001369,2]
[382812451,1756735833261,-151.0,0.0001369,2]
[382812453,1756735833272,-151.0,0.0001369,2]
[382812455,1756735833282,-500.0,0.0001369,2]
[382812457,1756735833291,-151.0,0.0001369,2]
[382812459,1756735833301,-500.0,0.0001369,2]
[382812461,1756735833311,-151.0,0.0001369,2]
[382812463,1756735833322,-500.0,0.0001369,2]
[382812465,1756735833331,-151.0,0.0001369,2]
[382812467,1756735833340,-500.0,0.0001369,2]
[382812469,1756735833350,-151.0,0.0001369,2]
[382812471,1756735833359,-151.0,0.0001369,2]
[382812473,1756735833368,-151.0,0.0001369,2]
[382812475,1756735833378,-151.0,0.0001369,2]
[382812476,1756735833388,-226.9344424,0.0001369,2]
[382812479,1756735833398,-151.0,0.0001369,2]
[382812480,1756735833408,-151.0,0.0001369,2]
[382812482,1756735833417,-212.92880441,0.0001369,2]
[382812484,1756735833427,-1077.0,0.0001369,2]
[382812486,1756735833436,-151.0,0.0001369,2]
[382812488,1756735833446,-151.0,0.0001369,2]
[382812490,1756735833456,-151.0,0.0001369,2]
[382812492,1756735833466,-480.0,0.00013698,2]
[382812494,1756735833476,-480.0,0.00013698,2]
[382812496,1756735833486,-480.0,0.00013698,2]
[382812498,1756735833498,-480.0,0.00013698,2]
[382812500,1756735833508,-482.14472547,0.00013698,2]
[382812502,1756735833518,-480.0,0.00013698,2]
[382812504,1756735833527,-480.0,0.00013698,2]
[382812506,1756735833538,-648.49,0.00013698,2]
[382812508,1756735833547,-480.0,0.00013698,2]
[382812510,1756735833558,-273.37644596,0.00013698,2]
[382812512,1756735833569,-400.0,0.00013698,2]
[382812514,1756735833578,-618.17,0.00013698,2]
[382812516,1756735833588,-480.0,0.00013698,2]
[382812518,1756735833598,-480.0,0.00013698,2]
[382812520,1756735833607,-480.0,0.00013698,2]
[382812522,1756735833615,-882.78,0.00013698,2]
[382812524,1756735833625,-480.0,0.00013698,2]
[382812525,1756735833635,-480.0,0.00013698,2]
[382812528,1756735833645,-480.0,0.00013698,2]
[382812530,1756735833655,-480.0,0.00013698,2]
[382812531,1756735833664,-1209.46,0.00013698,2]
[382812533,1756735833674,-480.0,0.00013698,2]
[382812535,1756735833683,-463.39145523,0.00013698,2]
[382812537,1756735833693,-480.0,0.00013698,2]
[382812540,1756735833703,-996.1,0.00013698,2]
[382812542,1756735833712,-480.0,0.00013698,2]
[382812543,1756735833722,-480.0,0.00013698,2]
[382812545,1756735833732,-480.0,0.00013698,2]
[382812548,1756735833742,-480.0,0.00013698,2]
[382812550,1756735833752,-313.73449387,0.00013698,2]
[382812551,1756735833761,-480.0,0.00013698,2]
[382812553,1756735833771,-480.0,0.00013698,2]
[382812555,1756735833780,-295.80476267,0.00013698,2]
[382812558,1756735833800,-184.19523733,0.00013698,2]
[382812560,1756735833811,-338.89671591,0.00013698,2]
[382812562,1756735833823,-141.10328409,0.00013698,2]
[382812564,1756735833833,-480.0,0.00013698,2]
[382812566,1756735833842,-480.0,0.00013698,2]
[382812568,1756735833852,-123.95626651,0.00013698,2]
[382812570,1756735833863,-577.50373349,0.00013698,2]
[382812571,1756735833873,-149.9474036,0.00013698,2]
[382812667,1756735838370,-500.0,0.00013676,2]
[382812668,1756735838380,-500.0,0.00013676,2]
[382812669,1756735838391,-95.95238467,0.00013676,2]
[382812670,1756735838403,-404.04761533,0.00013676,2]
[382812671,1756735838413,-500.0,0.00013676,2]
[382812672,1756735838423,-500.0,0.00013676,2]
[382812673,1756735838432,-500.0,0.00013676,2]
[382812674,1756735838442,-500.0,0.00013676,2]
[382812675,1756735838452,-500.0,0.00013676,2]
[382812676,1756735838462,-500.0,0.00013676,2]
[382812677,1756735838472,-297.58494518,0.00013676,2]
[382812678,1756735838482,-500.0,0.00013676,2]
[382812679,1756735838497,-500.0,0.00013676,2]
[382812680,1756735838507,-500.0,0.00013676,2]
[382812681,1756735838517,-500.0,0.00013676,2]
[382812682,1756735838527,-500.0,0.00013676,2]
[382812683,1756735838538,-500.0,0.00013676,2]
[382812684,1756735838549,-589.05250357,0.00013676,2]
[382812685,1756735838559,-501.21141671,0.00013676,2]
[382812686,1756735838568,-500.0,0.00013676,2]
[382812687,1756735838577,-500.0,0.00013676,2]
[382812688,1756735838587,-500.0,0.00013676,2]
[382812689,1756735838596,-336.00470287,0.00013676,2]
[382812690,1756735838606,-500.0,0.00013676,2]
[382812691,1756735838615,-500.0,0.00013676,2]
[382812692,1756735838625,-300.0,0.00013676,2]
[382812693,1756735838635,-500.0,0.00013676,2]
[382812694,1756735838644,-641.05279586,0.00013676,2]
[382812695,1756735838654,-457.593593,0.00013676,2]
[382812696,1756735838663,-500.0,0.00013676,2]
[382812697,1756735838673,-500.0,0.00013676,2]
[382812698,1756735838683,-532.95353818,0.00013676,2]
[382812699,1756735838692,-500.0,0.00013676,2]
[382812700,1756735838702,-313.82648028,0.00013676,2]
[382812701,1756735838905,-500.0,0.00013676,2]
[382812702,1756735838918,-500.0,0.00013676,2]
[382812703,1756735838928,-500.0,0.00013676,2]
[382812704,1756735838939,-500.0,0.00013676,2]
[382812705,1756735838949,-500.0,0.00013676,2]
[382812706,1756735838959,-500.0,0.00013676,2]
[382812707,1756735838969,-250.0,0.0001369,2]
[382812708,1756735838979,-250.0,0.0001369,2]
[382812709,1756735838989,-250.0,0.0001369,2]
[382812710,1756735839007,-250.0,0.0001369,2]
[382812711,1756735839018,-276.84495305,0.00013698,2]
[382812712,1756735839028,-1102.29,0.00013698,2]
[382812713,1756735839038,-608.66362371,0.00013698,2]
[382812714,1756735839048,-480.0,0.00013698,2]
[382812715,1756735839058,-924.04,0.00013698,2]
[382812716,1756735839068,-480.0,0.00013698,2]
[382812717,1756735839085,-526.77,0.00013698,2]
[382812718,1756735839098,-534.16,0.00013698,2]
[382812719,1756735839108,-480.0,0.00013698,2]
[382812720,1756735839118,-493.23,0.00013698,2]
[382812721,1756735839127,-668.15,0.00013698,2]
[382812722,1756735839136,-450.19778991,0.00013698,2]
[382812723,1756735839145,-480.0,0.00013698,2]
[382812724,1756735839154,-480.0,0.00013698,2]
[382812725,1756735839164,-285.49,0.00013698,2]
[382812726,1756735839173,-310.72329907,0.00013698,2]
[382812727,1756735839183,-480.0,0.00013698,2]
[382812728,1756735839194,-480.0,0.00013698,2]
[382812729,1756735839206,-504.5,0.00013698,2]
[382812730,1756735839215,-480.0,0.00013698,2]
[382812731,1756735839225,-480.0,0.00013698,2]
[382812732,1756735839235,-480.0,0.00013698,2]
[382812733,1756735839245,-480.0,0.00013698,2]
[382812734,1756735839255,-735.35,0.00013698,2]
[382812735,1756735839264,-480.0,0.00013698,2]
[382812736,1756735839274,-482.72625272,0.00013698,2]
[382812737,1756735839284,-710.84,0.00013698,2]
[382812738,1756735839294,-480.0,0.00013698,2]
[382812739,1756735839304,-571.894115,0.00013698,2]
[382812740,1756735839319,-236.675885,0.00013698,2]
[382812741,1756735839328,-233.35030297,0.00013698,2]
[382812742,1756735839344,-246.64969703,0.00013698,2]
[382812743,1756735839353,-480.0,0.00013698,2]
[382812744,1756735839363,-401.86043309,0.00013698,2]
[382812745,1756735839380,-78.13956691,0.00013698,2]
[382812746,1756735839389,-231.59225965,0.00013698,2]
[382812747,1756735839399,-35.42171842,0.00013698,2]
[382812748,1756735839411,-444.57828158,0.00013698,2]
[382812749,1756735839421,-484.08489129,0.00013698,2]
[382812750,1756735839431,-293.73317261,0.00013698,2]
[382812756,1756735840406,-250.0,0.0001369,2]
[382812757,1756735840417,-186.26682739,0.00013698,2]
[382812758,1756735840426,-480.0,0.00013698,2]
[382812759,1756735840437,-480.0,0.00013698,2]
[382812760,1756735840448,-693.69,0.00013698,2]
[382812761,1756735840457,-533.76110276,0.00013698,2]
[382812762,1756735840467,-574.5952162,0.00013698,2]
[382812763,1756735840476,-480.0,0.00013698,2]
[382812764,1756735840486,-480.0,0.00013698,2]
[382812765,1756735840498,-480.0,0.00013698,2]
[382812766,1756735840508,-483.50344514,0.00013698,2]
[382812767,1756735840518,-480.0,0.00013698,2]
[382812768,1756735840528,-480.0,0.00013698,2]
[382812769,1756735840539,-214.02284841,0.00013698,2]
[382812770,1756735840547,-480.0,0.00013698,2]
[382812771,1756735840557,-480.0,0.00013698,2]
[382812772,1756735840569,-480.0,0.00013698,2]
[382812773,1756735840578,-480.0,0.00013698,2]
[382812774,1756735840588,-480.0,0.00013698,2]
[382812775,1756735840598,-480.0,0.00013698,2]
[382812776,1756735840607,-480.0,0.00013698,2]
[382812777,1756735840617,-763.12,0.00013698,2]
[382812778,1756735840627,-332.0405601,0.00013698,2]
[382812779,1756735840639,-147.9594399,0.00013698,2]
[382812780,1756735840648,-480.0,0.00013698,2]
[382812781,1756735840658,-480.0,0.00013698,2]
[382812782,1756735840670,-480.0,0.00013698,2]
[382812783,1756735840680,-277.69981519,0.00013698,2]
[382812784,1756735840691,-202.30018481,0.00013698,2]
[382812785,1756735840701,-373.29988668,0.00013698,2]
[382812786,1756735841344,-106.70011332,0.00013698,2]
[382812787,1756735841353,-723.94,0.00013698,2]
[382812788,1756735841363,-480.0,0.00013698,2]
[382812789,1756735841372,-480.0,0.00013698,2]
[382812790,1756735841381,-480.0,0.00013698,2]
[382812791,1756735841390,-480.0,0.00013698,2]
[382812793,1756735841400,-480.0,0.00013698,2]
[382812795,1756735841409,-480.0,0.00013698,2]
[382812797,1756735841419,-480.0,0.00013698,2]
[382812799,1756735841428,-480.0,0.00013698,2]
[382812801,1756735841437,-480.0,0.00013698,2]
[382812803,1756735841447,-480.0,0.00013698,2]
[382812805,1756735841456,-480.0,0.00013698,2]
[382812807,1756735841465,-480.0,0.00013698,2]
[382812809,1756735841474,-480.0,0.00013698,2]
[382812811,1756735841483,-480.0,0.00013698,2]
[382812813,1756735841493,-608.69,0.00013698,2]
[382812815,1756735841507,-480.0,0.00013698,2]
[382812818,1756735841516,-489.86967818,0.00013698,2]
[382812820,1756735841526,-480.0,0.00013698,2]
[382812822,1756735841535,-480.0,0.00013698,2]
[382812823,1756735841544,-480.0,0.00013698,2]
[382812825,1756735841553,-268.824,0.00013698,2]
[382812828,1756735841566,-480.0,0.00013698,2]
[382812830,1756735841576,-698.97,0.00013698,2]
[382812832,1756735841585,-488.31758207,0.00013698,2]
[382812834,1756735841594,-480.0,0.00013698,2]
[382812836,1756735841603,-480.0,0.00013698,2]
[382812838,1756735841612,-480.0,0.00013698,2]
[382812840,1756735841621,-480.0,0.00013698,2]
[382812842,1756735841630,-778.83,0.00013698,2]
[382812844,1756735841639,-480.0,0.00013698,2]
[382812846,1756735841649,-481.66727339,0.00013698,2]
[382812848,1756735841658,-480.0,0.00013698,2]
[382812850,1756735841667,-612.57,0.00013698,2]
[382812851,1756735841677,-520.57,0.00013698,2]
[382812854,1756735841687,-480.0,0.00013698,2]
[382812856,1756735841696,-480.0,0.00013698,2]
[382812858,1756735841706,-492.66256254,0.00013698,2]
[382812859,1756735841715,-602.36,0.00013698,2]
[382812861,1756735841724,-750.29,0.00013698,2]
[382812863,1756735841733,-494.09355426,0.00013698,2]
[382812865,1756735841743,-480.0,0.00013698,2]
[382812867,1756735841752,-480.0,0.00013698,2]
[382812869,1756735841761,-480.0,0.00013698,2]
[382812871,1756735841770,-480.0,0.00013698,2]
[382812873,1756735841779,-480.0,0.00013698,2]
[382812875,1756735841789,-561.74,0.00013698,2]
[382812877,1756735841798,-480.0,0.00013698,2]
[382812879,1756735841807,-480.0,0.00013698,2]
[382812881,1756735841818,-480.0,0.00013698,2]
[382812883,1756735841827,-481.61529543,0.00013698,2]
[382812885,1756735841838,-480.0,0.00013698,2]
[382812887,1756735841847,-519.16,0.00013698,2]
[382812889,1756735841856,-480.0,0.00013698,2]
[382812891,1756735841865,-1063.35,0.00013698,2]
[382812893,1756735841874,-480.0,0.00013698,2]
[382812895,1756735841883,-480.0,0.00013698,2]
[382812897,1756735841893,-480.0,0.00013698,2]
[382812899,1756735841902,-717.12,0.00013698,2]
[382812901,1756735841911,-480.0,0.00013698,2]
[382812903,1756735841920,-480.0,0.00013698,2]
[382812905,1756735841930,-584.0,0.00013698,2]
[382812907,1756735841939,-480.0,0.00013698,2]
[382812909,1756735841948,-480.0,0.00013698,2]
[382812911,1756735841957,-480.0,0.00013698,2]
[382812913,1756735841966,-480.0,0.00013698,2]
[382812915,1756735841976,-1073.27,0.00013698,2]
[382812917,1756735841985,-480.0,0.00013698,2]
[382812919,1756735841995,-480.0,0.00013698,2]
[382812921,1756735842004,-511.6,0.00013698,2]
[382812923,1756735842013,-903.89,0.00013698,2]
[382812925,1756735842023,-494.4,0.00013698,2]
[382812927,1756735842031,-438.76004536,0.00013698,2]
[382813084,1756735843505,-432.00156545,0.00013676,2]
[382813086,1756735843515,-257.08370797,0.0001369,2]
[382813088,1756735843524,-69.68995464,0.00013698,2]
[382813090,1756735843535,-480.0,0.00013698,2]
[382813092,1756735843544,-480.0,0.00013698,2]
[382813094,1756735843554,-480.0,0.00013698,2]
[382813097,1756735843564,-480.0,0.00013698,2]
[382813100,1756735843573,-614.02,0.00013698,2]
[382813103,1756735843583,-480.0,0.00013698,2]
[382813106,1756735843592,-482.11682288,0.00013698,2]
[382813108,1756735843600,-480.0,0.00013698,2]
[382813111,1756735843610,-759.11,0.00013698,2]
[382813114,1756735843619,-1122.43,0.00013698,2]
[382813117,1756735843628,-480.0,0.00013698,2]
[382813119,1756735843638,-824.39,0.00013698,2]
[382813122,1756735843647,-480.0,0.00013698,2]
[382813125,1756735843656,-480.0,0.00013698,2]
[382813127,1756735843666,-560.97,0.00013698,2]
[382813130,1756735843675,-448.31201747,0.00013698,2]
[382813132,1756735843684,-1873.04,0.00013698,2]
[382813134,1756735843693,-480.0,0.00013698,2]
[382813136,1756735843702,-480.0,0.00013698,2]
[382813138,1756735843712,-480.0,0.00013698,2]
[382813140,1756735843721,-480.0,0.00013698,2]
[382813142,1756735843730,-480.0,0.00013698,2]
[382813144,1756735843739,-480.0,0.00013698,2]
[382813146,1756735843748,-212.47365829,0.00013698,2]
[382813148,1756735843758,-480.0,0.00013698,2]
[382813150,1756735843767,-480.0,0.00013698,2]
[382813151,1756735843776,-480.0,0.00013698,2]
[382813154,1756735843786,-480.0,0.00013698,2]
[382813156,1756735843796,-480.0,0.00013698,2]
[382813158,1756735843805,-480.0,0.00013698,2]
[382813160,1756735843814,-480.0,0.00013698,2]
[382813162,1756735843824,-480.0,0.00013698,2]
[382813164,1756735843833,-480.0,0.00013698,2]
[382813166,1756735843843,-480.0,0.00013698,2]
[382813168,1756735843852,-480.0,0.00013698,2]
[382813169,1756735843861,-480.0,0.00013698,2]
[382813172,1756735843871,-480.0,0.00013698,2]
[382813174,1756735843881,-480.0,0.00013698,2]
[382813176,1756735843890,-480.0,0.00013698,2]
[382813178,1756735843899,-956.95,0.00013698,2]
[382813180,1756735843909,-480.0,0.00013698,2]
[382813182,1756735843918,-480.0,0.00013698,2]
[382813184,1756735843929,-848.22,0.00013698,2]
[382813186,1756735843938,-480.0,0.00013698,2]
[382813188,1756735843948,-480.0,0.00013698,2]
[382813190,1756735843958,-472.39975061,0.00013698,2]
[382813192,1756735843971,-146.54188552,0.00013698,2]
[382813194,1756735843980,-129.32341489,0.00013698,2]
[382813415,1756735846294,425.58,0.00012329,2]
[382813454,1756735846666,-1776.72658511,0.00013698,2]
[382813456,1756735846676,-480.0,0.00013698,2]
[382813458,1756735846686,-480.0,0.00013698,2]
[382813460,1756735846695,-480.0,0.00013698,2]
[382813461,1756735846705,-480.0,0.00013698,2]
[382813463,1756735846714,-480.0,0.00013698,2]
[382813465,1756735846724,-522.13,0.00013698,2]
[382813467,1756735846733,-480.0,0.00013698,2]
[382813469,1756735846743,-480.0,0.00013698,2]
[382813471,1756735846753,-350.24777246,0.00013698,2]
[382813473,1756735846763,-1246.39,0.00013698,2]
[382813475,1756735846772,-204.86443805,0.00013698,2]
[382814918,1756735969801,165.79,0.00025,30]
[382814919,1756735979481,500.56,0.00012329,2]
[382814920,1756735989951,417.13,0.00012329,2]
[382814922,1756736000451,942.32,0.00012329,2]
[382814923,1756736010913,181.48684675,0.00012329,2]
[382814924,1756736010935,603.78315325,0.00012329,2]
[382814926,1756736021357,654.39,0.00012329,2]
[382814927,1756736031780,545.32,0.00012329,2]
[382814928,1756736042360,454.44,0.00012329,2]
[382814929,1756736052988,378.7,0.00012329,2]
[382814930,1756736063265,315.58,0.00012329,2]
[382814931,1756736073744,262.98,0.00012329,2]
[382814932,1756736084174,219.15,0.00012329,2]
[382814933,1756736094595,182.63,0.00012329,2]
[382814934,1756736105006,152.19,0.00012329,2]
[382814935,1756736125615,1000.0,0.00012564,2]
[382814936,1756736125925,760.97,0.00012329,2]
[382814937,1756736146804,455.41,0.00012329,2]
[382814938,1756736154242,4014.46684675,0.00012664,2]
[382814939,1756736154266,6.29681085,0.00012664,2]
[382814941,1756736225214,-171.31108044,0.0001312,2]
[382814942,1756736225239,-167.34289376,0.0001322,2]
[382814943,1756736225264,-203.87399798,0.00013254,2]
[382814944,1756736225290,-167.34289376,0.00013354,2]
[382814945,1756736225313,-167.34289376,0.00013489,2]
[382814946,1756736225339,-300.0,0.00013489,2]
[382814947,1756736225363,-2720.41338358,0.0001349,2]
[382814948,1756736225388,-5181.99459357,0.0001349,2]
[382814949,1756736228521,27853.27748844,0.00013452,2]
[382814950,1756736238031,1200.0,0.00013451,2]
[382814951,1756736254876,1200.0,0.00013451,2]
[382814952,1756736265030,1200.0,0.00013451,2]
[382814953,1756736268064,168.0,0.00013493,2]
[382814954,1756736282092,1200.0,0.00013451,2]
[382814955,1756736282695,154.49101715,0.00013391,2]
[382814956,1756736292721,1500.0,0.00013451,2]
[382814957,1756736301835,7306.68,0.000135,2]
[382814958,1756736309983,1500.0,0.00013451,2]
[382814959,1756736324284,1412.65710624,0.00013451,2]
[382814960,1756736341129,1500.0,0.00013451,2]
[382814961,1756736343006,154.49101714,0.00013391,2]
[382814962,1756736346412,192.40341798,0.00013391,2]
[382814963,1756736367434,1500.0,0.00013451,2]
[382814964,1756736392745,1500.0,0.00013451,2]
[382814965,1756736399616,186.99018974,0.00013182,2]
[382814966,1756736418103,3900.0,0.00013451,2]
[382814967,1756736444061,3900.0,0.00013451,2]
[382814968,1756736469516,300.0,0.0001345,2]
[382814970,1756736495935,300.0,0.0001345,2]
[382814971,1756736501316,4145.59567484,0.0001349,2]
[382814972,1756736504550,5205.9783423,0.00012608,2]
[382814973,1756736517454,2824.13014264,0.00013488,2]
[382814974,1756736522221,300.0,0.0001345,2]
[382814975,1756736547035,1500.0,0.0001345,2]
[382814977,1756736572964,1500.0,0.0001345,2]
[382814978,1756736597539,1500.0,0.0001345,2]
[382814979,1756736624210,1306.83187335,0.0001345,2]
[382814980,1756736647162,666.0,0.00012596,2]
[382814982,1756736747688,2471.11387481,0.00013488,2]
[382814983,1756736755265,165.57774506,0.00013486,2]
[382814984,1756736760265,165.57774506,0.00013488,2]
[382814985,1756736765299,165.57774506,0.00013489,2]
[382814986,1756736772470,3152.22995211,0.00013013,2]
[382814987,1756736774469,5598.36039494,0.00013013,2]
[382815022,1756736950889,266.58400619,0.00013013,2]
[382815023,1756736953209,1066.33602476,0.00013013,2]
[382815025,1756736954888,2399.2560557,0.00013013,2]
[382815026,1756736957079,4265.34409902,0.00013013,2]
[382815027,1756736958880,6664.60015472,0.00013013,2]
[382815028,1756736960888,9587.42719857,0.00013013,2]
[382815030,1756736978112,2162.22464045,0.00013488,2]
[382815053,1756737032610,-3316.47653988,0.00013517,2]
[382815054,1756737032621,-1200.0,0.00013585,2]
[382815055,1756737032630,-300.0,0.00013585,2]
[382815056,1756737032640,-300.0,0.00013585,2]
[382815057,1756737032650,-300.0,0.00013585,2]
[382815058,1756737032659,-300.0,0.00013585,2]
[382815059,1756737032670,-1200.0,0.00013585,2]
[382815060,1756737032680,-300.0,0.00013585,2]
[382815061,1756737032690,-500.0,0.00013588,2]
[382815062,1756737032701,-500.0,0.00013588,2]
[382815063,1756737032711,-500.0,0.00013588,2]
[382815064,1756737032722,-402.27271783,0.00013588,2]
[382815065,1756737032731,-166.80126852,0.00013588,2]
[382815066,1756737032740,-159.11128505,0.00013588,2]
[382815067,1756737032750,-254.4512631,0.00013588,2]
[382815068,1756737032759,-156.54929897,0.00013588,2]
[382815069,1756737032768,-500.0,0.00013588,2]
[382815070,1756737032777,-500.0,0.00013588,2]
[382815071,1756737032788,-500.0,0.00013588,2]
[382815072,1756737032798,-500.0,0.00013588,2]
[382815073,1756737032809,-380.0,0.00013588,2]
[382815074,1756737032823,-500.0,0.00013588,2]
[382815075,1756737032832,-500.0,0.00013588,2]
[382815076,1756737032843,-500.0,0.00013588,2]
[382815077,1756737032852,-500.0,0.00013588,2]
[382815078,1756737032863,-500.0,0.00013588,2]
[382815079,1756737032873,-500.0,0.00013588,2]
[382815080,1756737032882,-500.0,0.00013588,2]
[382815081,1756737032893,-221.37328456,0.00013588,2]
[382815082,1756737032905,-500.0,0.00013588,2]
[382815083,1756737032915,-500.0,0.00013588,2]
[382815084,1756737032925,-500.0,0.00013588,2]
[382815085,1756737032935,-500.0,0.00013588,2]
[382815086,1756737032944,-500.0,0.00013588,2]
[382815087,1756737032954,-500.0,0.00013588,2]
[382815088,1756737032963,-500.0,0.00013588,2]
[382815089,1756737032972,-500.0,0.00013588,2]
[382815090,1756737032983,-500.0,0.00013588,2]
[382815091,1756737032994,-613.22085046,0.00013588,2]
[382815092,1756737033003,-500.0,0.00013588,2]
[382815093,1756737033013,-500.0,0.00013588,2]
[382815094,1756737033022,-500.0,0.00013588,2]
[382815095,1756737033032,-500.0,0.00013588,2]
[382815096,1756737033042,-500.0,0.00013588,2]
[382815097,1756737033052,-247.56057158,0.00013588,2]
[382815098,1756737033062,-500.0,0.00013588,2]
[382815099,1756737033071,-500.0,0.00013588,2]
[382815100,1756737033080,-500.0,0.00013588,2]
[382815101,1756737033090,-500.0,0.00013588,2]
[382815102,1756737033100,-500.0,0.00013588,2]
[382815103,1756737033110,-500.0,0.00013588,2]
[382815104,1756737033119,-500.0,0.00013588,2]
[382815105,1756737033128,-241.24123799,0.00013588,2]
[382815106,1756737033137,-500.0,0.00013588,2]
[382815107,1756737033146,-500.0,0.00013588,2]
[382815108,1756737033155,-500.0,0.00013588,2]